fUSD/lending_fUSD_20251129
["ID","MTS","AMOUNT","RATE_DAILY","PERIOD"]
[395057292,1764384633052,-24.71487842,0.00015538,2]
[395057293,1764384633063,-126.28512158,0.00015538,2]
[395057294,1764384633072,-200.0,0.00015538,2]
[395057295,1764384633081,-200.0,0.00015538,2]
[395057296,1764384633090,-200.0,0.00015538,2]
[395057297,1764384633099,-500.0,0.00015538,2]
[395057298,1764384633109,-500.0,0.00015538,2]
[395057299,1764384633118,-500.0,0.00015538,2]
[395057300,1764384633127,-500.0,0.00015538,2]
[395057301,1764384633137,-223.06842743,0.00015538,2]
[395057302,1764384633226,-276.93157257,0.00015538,2]
[395057303,1764384633235,-500.0,0.00015538,2]
[395057304,1764384633244,-500.0,0.00015538,2]
[395057305,1764384633259,-500.0,0.00015538,2]
[395057306,1764384633269,-500.0,0.00015538,2]
[395057307,1764384633279,-500.0,0.00015538,2]
[395057308,1764384633288,-251.54092816,0.00015538,2]
[395057311,1764384637805,-248.45907184,0.00015538,2]
[395057312,1764384637814,-500.0,0.00015538,2]
[395057313,1764384637823,-1319.03187932,0.00015605,2]
[395057314,1764384637859,-2123.65812068,0.00015605,2]
[395057315,1764384637868,-1251.85897512,0.00015621,2]
[395057316,1764384637881,-3676.48102488,0.00015621,2]
[395057317,1764384638152,-300.0,0.00015649,2]
[395057318,1764384638163,-666.0,0.00015649,2]
[395057319,1764384638172,-183.70217518,0.00015649,2]
[395057320,1764384638182,-151.0,0.00015649,2]
[395057322,1764384638191,-250.0,0.00015649,2]
[395057324,1764384638200,-151.0,0.00015649,2]
[395057325,1764384638210,-345.03485994,0.00015649,2]
[395057326,1764384638220,-250.0,0.00015649,2]
[395057327,1764384638230,-250.0,0.00015649,2]
[395057328,1764384638239,-151.0,0.00015649,2]
[395057330,1764384638248,-250.0,0.00015649,2]
[395057331,1764384638258,-151.0,0.00015649,2]
[395057332,1764384638267,-553.64373807,0.00015649,2]
[395057333,1764384638276,-250.0,0.00015649,2]
[395057334,1764384638286,-160.74558684,0.00015649,2]
[395057335,1764384638296,-151.0,0.00015649,2]
[395057336,1764384638305,-250.0,0.00015649,2]
[395057337,1764384638314,-151.0,0.00015649,2]
[395057338,1764384638324,-250.0,0.00015649,2]
[395057339,1764384638333,-151.0,0.00015649,2]
[395057340,1764384638342,-250.0,0.00015649,2]
[395057341,1764384638351,-151.0,0.00015649,2]
[395057342,1764384638360,-250.0,0.00015649,2]
[395057343,1764384638370,-151.0,0.00015649,2]
[395057344,1764384638379,-250.0,0.00015649,2]
[395057345,1764384638389,-250.0,0.00015649,2]
[395057346,1764384638398,-151.0,0.00015649,2]
[395057347,1764384638407,-260.68606343,0.00015649,2]
[395057348,1764384638417,-151.0,0.00015649,2]
[395057349,1764384638426,-151.0,0.00015649,2]
[395057350,1764384638435,-500.0,0.00015649,2]
[395057351,1764384638444,-500.0,0.00015649,2]
[395057352,1764384638454,-500.0,0.00015649,2]
[395057353,1764384638463,-500.0,0.00015649,2]
[395057354,1764384638472,-493.99129046,0.00015649,2]
[395057355,1764384638492,-6.00870954,0.00015649,2]
[395057356,1764384638501,-500.0,0.00015649,2]
[395057357,1764384638511,-500.0,0.00015649,2]
[395057358,1764384638520,-500.0,0.00015649,2]
[395057359,1764384638530,-151.0,0.00015649,2]
[395057360,1764384638539,-34.05653282,0.00015649,2]
[395057361,1764384638599,-465.94346718,0.00015649,2]
[395057362,1764384638609,-500.0,0.00015649,2]
[395057363,1764384638619,-500.0,0.00015649,2]
[395057364,1764384638628,-200.40989272,0.00015649,2]
[395057365,1764384638663,-299.59010728,0.00015649,2]
[395057366,1764384638673,-396.46549966,0.00015649,2]
[395057367,1764384638687,-103.53450034,0.00015649,2]
[395057368,1764384638697,-470.46549966,0.00015649,2]
[395057369,1764384638709,-29.53450034,0.00015649,2]
[395057370,1764384638718,-500.0,0.00015649,2]
[395057371,1764384638728,-500.0,0.00015649,2]
[395057372,1764384638737,-290.11049916,0.00015649,2]
[395057373,1764384638757,-209.88950084,0.00015649,2]
[395057374,1764384638767,-151.0,0.00015649,2]
[395057375,1764384638777,-250.0,0.00015649,2]
[395057376,1764384638786,-500.0,0.00015649,2]
[395057377,1764384638796,-500.0,0.00015649,2]
[395057378,1764384638805,-151.0,0.00015649,2]
[395057379,1764384638815,-250.0,0.00015649,2]
[395057380,1764384638824,-500.0,0.00015649,2]
[395057381,1764384638834,-232.3519411,0.00015649,2]
[395057382,1764384638845,-267.6480589,0.00015649,2]
[395057383,1764384638854,-151.0,0.00015649,2]
[395057384,1764384638864,-250.0,0.00015649,2]
[395057385,1764384638873,-500.0,0.00015649,2]
[395057386,1764384638883,-248.08934715,0.00015649,2]
[395057387,1764384638894,-251.91065285,0.00015649,2]
[395057388,1764384638904,-29.63934715,0.00015649,2]
[395057389,1764384638915,-121.36065285,0.00015649,2]
[395057390,1764384638924,-500.0,0.00015649,2]
[395057391,1764384638933,-500.0,0.00015649,2]
[395057392,1764384638942,-43.93896774,0.00015649,2]
[395057393,1764384638957,-206.06103226,0.00015649,2]
[395057394,1764384638967,-154.2048353,0.00015649,2]
[395057395,1764384638976,-500.0,0.00015649,2]
[395057396,1764384638985,-500.0,0.00015649,2]
[395057397,1764384638994,-229.91866843,0.00015649,2]
[395057399,1764384639727,-20.08133157,0.00015649,2]
[395057400,1764384639737,-500.0,0.00015649,2]
[395057401,1764384639747,-250.0,0.00015649,2]
[395057402,1764384639758,-500.0,0.00015649,2]
[395057403,1764384639768,-250.0,0.00015649,2]
[395057404,1764384639778,-220.0,0.00015649,2]
[395057405,1764384639787,-250.0,0.00015649,2]
[395057406,1764384639796,-500.0,0.00015649,2]
[395057407,1764384639805,-221.11752308,0.00015649,2]
[395057408,1764384639815,-500.0,0.00015649,2]
[395057409,1764384639825,-250.0,0.00015649,2]
[395057410,1764384639836,-500.0,0.00015649,2]
[395057411,1764384639845,-500.0,0.00015649,2]
[395057412,1764384639856,-500.0,0.00015649,2]
[395057413,1764384639866,-250.0,0.00015649,2]
[395057414,1764384639876,-500.0,0.00015649,2]
[395057415,1764384639887,-250.0,0.00015649,2]
[395057416,1764384639896,-313.21104782,0.00015649,2]
[395057417,1764384639911,-186.78895218,0.00015649,2]
[395057418,1764384639922,-500.0,0.00015649,2]
[395057419,1764384639931,-151.0,0.00015649,2]
[395057420,1764384639940,-500.0,0.00015649,2]
[395057421,1764384639949,-250.0,0.00015649,2]
[395057422,1764384639958,-500.0,0.00015649,2]
[395057423,1764384639969,-500.0,0.00015649,2]
[395057424,1764384639979,-500.0,0.00015649,2]
[395057425,1764384639988,-500.0,0.00015649,2]
[395057426,1764384639998,-500.0,0.00015649,2]
[395057427,1764384640007,-500.0,0.00015649,2]
[395057428,1764384640016,-500.0,0.00015649,2]
[395057429,1764384640026,-500.0,0.00015649,2]
[395057430,1764384640036,-500.0,0.00015649,2]
[395057431,1764384640046,-500.0,0.00015649,2]
[395057432,1764384640055,-500.0,0.00015649,2]
[395057433,1764384640064,-500.0,0.00015649,2]
[395057434,1764384640073,-500.0,0.00015649,2]
[395057435,1764384640082,-500.0,0.00015649,2]
[395057436,1764384640091,-500.0,0.00015649,2]
[395057437,1764384640100,-677.75966147,0.00015649,2]
[395057438,1764384640110,-500.0,0.00015649,2]
[395057439,1764384640119,-455.68570527,0.00015649,2]
[395057440,1764384640129,-500.0,0.00015649,2]
[395057441,1764384640138,-500.0,0.00015649,2]
[395057442,1764384640147,-500.0,0.00015649,2]
[395057443,1764384640156,-500.0,0.00015649,2]
[395057444,1764384640168,-267.46074303,0.00015649,2]
[395057445,1764384640177,-250.0,0.00015649,2]
[395057446,1764384640187,-250.0,0.00015649,2]
[395057448,1764384640196,-250.0,0.00015649,2]
[395057449,1764384640206,-151.0,0.00015649,2]
[395057450,1764384640216,-250.0,0.00015649,2]
[395057451,1764384640226,-250.0,0.00015649,2]
[395057452,1764384640239,-250.0,0.00015649,2]
[395057453,1764384640248,-250.0,0.00015649,2]
[395057454,1764384640257,-250.0,0.00015649,2]
[395057455,1764384640267,-250.0,0.00015649,2]
[395057456,1764384640276,-250.0,0.00015649,2]
[395057457,1764384640286,-250.0,0.00015649,2]
[395057458,1764384640295,-250.0,0.00015649,2]
[395057459,1764384640304,-151.0,0.00015649,2]
[395057460,1764384640315,-1000.0,0.00015686,2]
[395057461,1764384640325,-229.96,0.00015782,2]
[395057462,1764384640335,-255.0,0.00015857,2]
[395057463,1764384640343,-170.06001199,0.00015928,2]
[395057464,1764384640353,-760000.0,0.00015956,2]
[395057465,1764384640362,-200.0,0.00016029,2]
[395057466,1764384640374,-1910.3,0.00016056,2]
[395057467,1764384640383,-500.0,0.00016086,2]
[395057468,1764384640392,-200.0,0.00016086,2]
[395057469,1764384640401,-200.0,0.00016086,2]
[395057470,1764384640411,-250.53002007,0.00016183,2]
[395057471,1764384640421,-666.0,0.00016197,2]
[395057472,1764384640430,-574.12855637,0.00016197,2]
[395057473,1764384640439,-151.0,0.00016197,2]
[395057474,1764384640449,-151.0,0.00016197,2]
[395057475,1764384640459,-151.0,0.00016197,2]
[395057476,1764384640468,-300.0,0.00016211,2]
[395057477,1764384640478,-1680.0,0.00016211,2]
[395057478,1764384640488,-300.0,0.00016212,2]
[395057479,1764384640497,-605.63539217,0.00016438,2]
[395057480,1764384640507,-500.0,0.00016472,2]
[395057481,1764384640515,-500.0,0.00016472,2]
[395057482,1764384640525,-150.0,0.00016472,2]
[395057483,1764384640535,-500.0,0.00016472,2]
[395057484,1764384640544,-500.0,0.00016472,2]
[395057485,1764384640553,-221.38150535,0.00016472,2]
[395057486,1764384640563,-500.0,0.00016472,2]
[395057487,1764384640572,-553.0,0.00016472,2]
[395057488,1764384640582,-159.01047172,0.00016472,2]
[395057489,1764384640592,-500.0,0.00016472,2]
[395057490,1764384640601,-500.0,0.00016472,2]
[395057491,1764384640611,-150.0,0.00016472,2]
[395057492,1764384640619,-500.0,0.00016472,2]
[395057493,1764384640628,-150.0,0.00016472,2]
[395057494,1764384640638,-208.99032631,0.00016472,2]
[395057495,1764384640647,-500.0,0.00016472,2]
[395057496,1764384640656,-1613.0,0.00016493,2]
[395057497,1764384640665,-1885.20226992,0.00016553,2]
[395057498,1764384640676,-684.40163245,0.0001657,2]
[395057499,1764384640688,-1136.57021784,0.0001657,2]
[395057500,1764384640698,-1613.0,0.00016587,2]
[395057501,1764384640707,-511.32415705,0.00016609,2]
[395057502,1764384640717,-500.0,0.00016609,2]
[395057503,1764384640726,-179.38602173,0.00016609,2]
[395057504,1764384640736,-502.29927757,0.00016609,2]
[395057505,1764384640746,-500.0,0.00016609,2]
[395057506,1764384640765,-504.86567397,0.00016609,2]
[395057507,1764384640776,-553.0,0.00016609,2]
[395057508,1764384640786,-507.67639133,0.00016609,2]
[395057509,1764384640796,-352.75347519,0.00016609,2]
[395057510,1764384640806,-367.06260032,0.00016609,2]
[395057511,1764384640815,-500.0,0.00016609,2]
[395057512,1764384640825,-1613.0,0.00016619,2]
[395057513,1764384640834,-500.0,0.00016634,2]
[395057514,1764384640843,-200.0,0.00016634,2]
[395057515,1764384640853,-200.0,0.00016634,2]
[395057516,1764384640863,-650.44247903,0.0001666,2]
[395057517,1764384640872,-1000.0,0.000167,2]
[395057518,1764384640882,-1000.0,0.00016701,2]
[395057519,1764384640892,-254.64,0.00016702,2]
[395057520,1764384640901,-150.0,0.00016702,2]
[395057521,1764384640911,-160.78,0.00016712,2]
[395057522,1764384640920,-352.10572654,0.00016725,2]
[395057523,1764384640930,-666.0,0.00016745,2]
[395057524,1764384640940,-595.37131296,0.00016745,2]
[395057525,1764384640949,-151.0,0.00016745,2]
[395057526,1764384640958,-151.0,0.00016745,2]
[395057527,1764384640969,-151.0,0.00016745,2]
[395057528,1764384640979,-318.04186635,0.00016746,2]
[395057529,1764384640989,-500.0,0.00016746,2]
[395057530,1764384640998,-553.0,0.00016746,2]
[395057531,1764384641008,-820.0,0.00016796,2]
[395057532,1764384641017,-413.0,0.000168,2]
[395057533,1764384641027,-563.96476834,0.000168,2]
[395057534,1764384641036,-1000.0,0.000168,2]
[395057535,1764384641046,-533.38885709,0.000168,2]
[395057536,1764384641055,-1174.72926996,0.000168,2]
[395057537,1764384641065,-222.65612674,0.00016812,2]
[395057538,1764384641078,-2810.46055,0.0001683,2]
[395057539,1764384641088,-502.19807577,0.00016873,2]
[395057540,1764384641098,-533.48476071,0.00016873,2]
[395057541,1764384641109,-500.0,0.00016873,2]
[395057542,1764384641118,-160.05006071,0.00016873,2]
[395057543,1764384641127,-500.0,0.00016873,2]
[395057544,1764384641137,-500.0,0.00016876,2]
[395057545,1764384641147,-500.0,0.00016876,2]
[395057546,1764384641156,-500.0,0.00016876,2]
[395057547,1764384641166,-560.91955049,0.00016883,2]
[395057548,1764384641176,-553.0,0.00016883,2]
[395057549,1764384641186,-161.385,0.00016889,2]
[395057550,1764384641196,-1117.906,0.00016889,2]
[395057551,1764384641580,-500.71233622,0.00016899,2]
[395057552,1764384641590,-355.18950166,0.00016899,2]
[395057553,1764384641599,-500.0,0.00016899,2]
[395057554,1764384641608,-500.0,0.00016899,2]
[395057555,1764384641618,-500.0,0.00016899,2]
[395057556,1764384641627,-630.44700569,0.00016899,2]
[395057557,1764384641636,-500.0,0.00016899,2]
[395057558,1764384641645,-500.0,0.00016899,2]
[395057559,1764384641654,-500.0,0.00016899,2]
[395057560,1764384641665,-500.0,0.00016899,2]
[395057561,1764384641675,-500.0,0.00016899,2]
[395057562,1764384641688,-504.53940233,0.00016899,2]
[395057563,1764384641698,-282.15496035,0.000169,2]
[395057564,1764384641707,-1000.0,0.000169,2]
[395057565,1764384641716,-600.0,0.000169,2]
[395057566,1764384641726,-571.42199555,0.000169,2]
[395057567,1764384641735,-287.07079724,0.000169,2]
[395057568,1764384641744,-1000.0,0.000169,2]
[395057569,1764384641753,-609.73056078,0.000169,2]
[395057570,1764384641762,-191.26731904,0.000169,2]
[395057571,1764384641771,-595.07469987,0.000169,2]
[395057572,1764384641781,-221.0,0.00016902,2]
[395057573,1764384641791,-1522.03619476,0.00016922,2]
[395057574,1764384641800,-820.0,0.00016926,2]
[395057575,1764384641809,-6898.0,0.00016959,2]
[395057576,1764384641818,-6127.0,0.00016959,2]
[395057577,1764384641828,-500.0,0.0001697,2]
[395057578,1764384641838,-500.0,0.0001697,2]
[395057579,1764384641848,-1000.0,0.0001697,2]
[395057580,1764384641857,-500.0,0.0001697,2]
[395057581,1764384641867,-1000.0,0.0001697,2]
[395057582,1764384641878,-500.0,0.0001697,2]
[395057583,1764384641887,-1000.0,0.0001697,2]
[395057584,1764384641897,-500.0,0.0001697,2]
[395057585,1764384641907,-1000.0,0.0001697,2]
[395057586,1764384641919,-1000.0,0.0001697,2]
[395057587,1764384641929,-501.02061135,0.00016973,2]
[395057588,1764384641939,-168.80860309,0.00016973,2]
[395057589,1764384641949,-500.0,0.00016973,2]
[395057590,1764384641958,-500.0,0.00016973,2]
[395057591,1764384641968,-500.0,0.00016973,2]
[395057592,1764384641977,-557.79853183,0.00016973,2]
[395057593,1764384641987,-154.79663815,0.00016973,2]
[395057594,1764384641997,-500.0,0.00016973,2]
[395057595,1764384642007,-500.0,0.00016973,2]
[395057596,1764384642016,-500.0,0.00016973,2]
[395057597,1764384642025,-230.8313981,0.00016973,2]
[395057598,1764384642035,-500.0,0.00016973,2]
[395057599,1764384642045,-500.0,0.00016973,2]
[395057600,1764384642055,-500.89201564,0.00016973,2]
[395057601,1764384642064,-500.0,0.00016973,2]
[395057602,1764384642075,-200.84077125,0.00016973,2]
[395057603,1764384642084,-500.0,0.00016973,2]
[395057604,1764384642094,-500.33310911,0.00016973,2]
[395057605,1764384642103,-160.04815265,0.00016973,2]
[395057606,1764384642112,-159.99691032,0.00016973,2]
[395057607,1764384642121,-500.84864969,0.00016973,2]
[395057608,1764384642130,-501.57067169,0.00016973,2]
[395057609,1764384642140,-501.17036875,0.00016973,2]
[395057610,1764384642149,-500.0,0.00016973,2]
[395057611,1764384642158,-500.0,0.00016973,2]
[395057612,1764384642167,-201.08259325,0.00016973,2]
[395057613,1764384642177,-300.0,0.0001698,2]
[395057614,1764384642186,-300.0,0.0001698,2]
[395057615,1764384642195,-300.0,0.0001698,2]
[395057616,1764384642204,-300.0,0.0001698,2]
[395057617,1764384642213,-300.0,0.0001698,2]
[395057618,1764384642222,-300.0,0.0001698,2]
[395057619,1764384642231,-300.0,0.0001698,2]
[395057620,1764384642240,-300.0,0.0001698,2]
[395057621,1764384642248,-300.0,0.0001698,2]
[395057622,1764384642257,-300.0,0.0001698,2]
[395057623,1764384642267,-300.0,0.0001698,2]
[395057624,1764384642276,-300.0,0.0001698,2]
[395057625,1764384642285,-300.0,0.0001698,2]
[395057626,1764384642294,-300.0,0.0001698,2]
[395057627,1764384642303,-300.0,0.0001698,2]
[395057628,1764384642312,-300.0,0.0001698,2]
[395057629,1764384642322,-300.0,0.0001698,2]
[395057630,1764384642331,-300.0,0.0001698,2]
[395057631,1764384642340,-300.0,0.0001698,2]
[395057632,1764384642350,-300.0,0.0001698,2]
[395057633,1764384642359,-160.0,0.0001699,2]
[395057634,1764384642368,-160.0,0.0001699,2]
[395057635,1764384642378,-160.31,0.0001699,2]
[395057636,1764384642387,-948.98572958,0.0001699,2]
[395057637,1764384642396,-948.98572958,0.0001699,2]
[395057638,1764384642406,-4307.0,0.00016998,2]
[395057639,1764384642415,-500.0,0.00016998,2]
[395057640,1764384642425,-73213.4562155,0.00016998,2]
[395057641,1764384642434,-500.0,0.00016998,2]
[395057642,1764384642444,-500.0,0.00016999,2]
[395057644,1764384642453,-513.09178011,0.00016999,2]
[395057646,1764384642463,-1787088.10670092,0.00017,2]
[395057647,1764384642472,-158717.64881284,0.00017,2]
[395057651,1764384643236,-154565.92310621,0.00017,2]
[395057652,1764384643272,-453.41,0.00016746,2]
[395057653,1764384643582,-46.59,0.00016746,2]
[395057654,1764384643592,-5986.63269381,0.00017,2]
[395057655,1764384643604,-2666.05555921,0.00017,2]
[395057656,1764384643616,-1109.86639144,0.00017,2]
[395057657,1764384643639,-237.75880231,0.00016883,2]
[395057658,1764384643648,-2949.28797615,0.00017,2]
[395057659,1764384643659,-2002.58108,0.00017,2]
[395057660,1764384643670,-2501.29291,0.00017,2]
[395057661,1764384643683,-414.17999991,0.00017,2]
[395057662,1764384643694,-878.73,0.00017,2]
[395057671,1764384645934,-150.0,0.00016472,2]
[395057672,1764384645950,-150.0,0.00016609,2]
[395057673,1764384645966,-200.0,0.00016746,2]
[395057675,1764384645982,-1013.74948196,0.000169,2]
[395057676,1764384646000,-1639.0792715,0.00017,2]
[395057677,1764384646157,-175280.40522026,0.00017,2]
[395057678,1764384646175,-570.44,0.00017,2]
[395057679,1764384646280,-149362.61187262,0.00017,2]
[395057680,1764384646565,-3057.5545,0.00017,2]
[395057681,1764384647482,-284.4780003,0.00017,2]
[395057682,1764384647505,-3974.43422412,0.00017,2]
[395057683,1764384647515,-1912.97792903,0.00017,2]
[395057684,1764384647527,-4813.77007313,0.00017,2]
[395057691,1764384883421,624.16,0.00013699,2]
[395057692,1764385023983,2754.48,0.00022,30]
[395057693,1764385123757,166.66,0.00014572,2]
[395057695,1764385228297,555.0,0.00025,120]
[395057696,1764385249319,555.0,0.00022,30]
[395057698,1764385306187,175.25315841,0.00014708,2]
[395057699,1764385336029,225.16,0.00011966,2]
[395057701,1764385409950,860.3188639,0.00014732,3]
[395057713,1764385721267,150.0,0.00014706,2]
[395057714,1764385746360,383.26,0.00014727,2]
[395057752,1764385817134,4904.81116374,0.000147,2]
[395057761,1764385831799,-199.51177659,0.00014738,2]
[395057762,1764385831809,-300.0,0.00014786,2]
[395057763,1764385831818,-1194.16950242,0.00014835,2]
[395057764,1764385831829,-300.92044309,0.00014835,2]
[395057765,1764385831903,-460.46551327,0.00014835,2]
[395057766,1764385831960,-44.44454122,0.00014835,2]
[395057767,1764385831970,-166.66,0.00014879,2]
[395057768,1764385831979,-150.0,0.00014912,2]
[395057769,1764385831989,-1852.42,0.00014957,2]
[395057770,1764385831999,-924.5,0.00015029,2]
[395057771,1764385832008,-1200.0,0.00015083,2]
[395057772,1764385832017,-2500.0,0.00015084,2]
[395057773,1764385832027,-300.0,0.00015184,2]
[395057774,1764385832036,-1117.906,0.00015185,2]
[395057775,1764385832045,-161.385,0.00015185,2]
[395057776,1764385832056,-166.66,0.00015185,2]
[395057778,1764385832065,-2500.0,0.00015188,2]
[395057780,1764385832074,-150.0,0.00015288,2]
[395057781,1764385832083,-150.0,0.00015288,2]
[395057782,1764385832092,-150.0,0.00015288,2]
[395057783,1764385832101,-150.0,0.00015288,2]
[395057784,1764385832110,-150.0,0.00015288,2]
[395057785,1764385832122,-150.0,0.00015288,2]
[395057786,1764385832131,-150.0,0.00015288,2]
[395057787,1764385832141,-150.0,0.00015288,2]
[395057788,1764385832150,-150.0,0.00015288,2]
[395057789,1764385832159,-150.0,0.00015288,2]
[395057790,1764385832168,-150.0,0.00015288,2]
[395057791,1764385832178,-300.0,0.00015358,2]
[395057792,1764385832187,-200.0,0.00015359,2]
[395057793,1764385832197,-200.0,0.00015359,2]
[395057794,1764385832209,-200.0,0.00015359,2]
[395057795,1764385832219,-500.0,0.00015359,2]
[395057796,1764385832227,-151.0,0.00015359,2]
[395057797,1764385832236,-151.0,0.00015359,2]
[395057798,1764385832245,-151.0,0.00015359,2]
[395057799,1764385832254,-151.0,0.00015359,2]
[395057800,1764385832264,-151.0,0.00015359,2]
[395057801,1764385832274,-151.0,0.00015359,2]
[395057802,1764385832287,-151.0,0.00015359,2]
[395057803,1764385832297,-151.0,0.00015359,2]
[395057804,1764385832306,-151.0,0.00015359,2]
[395057805,1764385832315,-151.0,0.00015359,2]
[395057806,1764385832324,-151.0,0.00015359,2]
[395057807,1764385832334,-151.0,0.00015359,2]
[395057808,1764385832343,-500.0,0.00015359,2]
[395057809,1764385832353,-500.0,0.00015359,2]
[395057810,1764385832362,-500.0,0.00015359,2]
[395057811,1764385832371,-500.0,0.00015359,2]
[395057812,1764385832380,-500.0,0.00015359,2]
[395057813,1764385832390,-500.0,0.00015359,2]
[395057814,1764385832399,-500.0,0.00015359,2]
[395057815,1764385832408,-500.0,0.00015359,2]
[395057816,1764385832419,-500.0,0.00015359,2]
[395057817,1764385832429,-500.0,0.00015359,2]
[395057818,1764385832439,-529.43708906,0.00015359,2]
[395057819,1764385832448,-1000.0,0.00015367,2]
[395057820,1764385832457,-30990.96681082,0.00015368,2]
[395057821,1764385832466,-250.0,0.00015418,2]
[395057822,1764385832474,-166.66,0.00015492,2]
[395057823,1764385832484,-500.0,0.00015683,2]
[395057824,1764385832493,-151.0,0.00015683,2]
[395057825,1764385832502,-666.0,0.00015683,2]
[395057826,1764385832511,-553.64373807,0.00015683,2]
[395057827,1764385832520,-500.0,0.00015683,2]
[395057828,1764385832529,-500.0,0.00015683,2]
[395057829,1764385832538,-500.0,0.00015683,2]
[395057830,1764385832548,-500.0,0.00015683,2]
[395057831,1764385832557,-500.0,0.00015683,2]
[395057832,1764385832566,-500.0,0.00015683,2]
[395057833,1764385832575,-552.99818716,0.00015683,2]
[395057834,1764385832584,-151.0,0.00015683,2]
[395057835,1764385832593,-500.0,0.00015683,2]
[395057836,1764385832602,-500.0,0.00015683,2]
[395057837,1764385832612,-500.0,0.00015683,2]
[395057838,1764385832621,-500.0,0.00015683,2]
[395057839,1764385832630,-500.0,0.00015683,2]
[395057840,1764385832639,-151.0,0.00015683,2]
[395057841,1764385832648,-500.0,0.00015683,2]
[395057842,1764385832657,-151.0,0.00015683,2]
[395057843,1764385832666,-500.0,0.00015683,2]
[395057844,1764385832675,-151.0,0.00015683,2]
[395057845,1764385832684,-500.0,0.00015683,2]
[395057846,1764385832694,-151.0,0.00015683,2]
[395057847,1764385832703,-151.0,0.00015683,2]
[395057848,1764385832714,-300.0,0.00015683,2]
[395057849,1764385832723,-500.0,0.00015683,2]
[395057850,1764385832733,-151.0,0.00015683,2]
[395057851,1764385832742,-500.0,0.00015683,2]
[395057852,1764385832751,-500.0,0.00015683,2]
[395057853,1764385832760,-151.0,0.00015683,2]
[395057854,1764385832770,-500.0,0.00015683,2]
[395057855,1764385832779,-500.0,0.00015683,2]
[395057856,1764385832788,-151.0,0.00015683,2]
[395057857,1764385832797,-500.0,0.00015683,2]
[395057858,1764385832806,-500.0,0.00015683,2]
[395057859,1764385832816,-151.0,0.00015683,2]
[395057860,1764385832825,-500.0,0.00015683,2]
[395057861,1764385832835,-500.0,0.00015683,2]
[395057862,1764385832844,-151.0,0.00015683,2]
[395057863,1764385832853,-500.0,0.00015683,2]
[395057864,1764385832862,-151.0,0.00015683,2]
[395057865,1764385832871,-552.56066859,0.00015683,2]
[395057866,1764385832880,-151.0,0.00015683,2]
[395057867,1764385832889,-151.0,0.00015683,2]
[395057868,1764385832898,-500.0,0.00015683,2]
[395057869,1764385832907,-500.0,0.00015683,2]
[395057870,1764385832916,-500.0,0.00015683,2]
[395057871,1764385832925,-151.0,0.00015683,2]
[395057872,1764385832934,-500.0,0.00015683,2]
[395057873,1764385832944,-250.0,0.00015683,2]
[395057874,1764385832953,-500.0,0.00015683,2]
[395057875,1764385832962,-250.0,0.00015683,2]
[395057876,1764385832971,-500.0,0.00015683,2]
[395057877,1764385832980,-250.0,0.00015683,2]
[395057878,1764385832989,-500.0,0.00015683,2]
[395057879,1764385832998,-250.0,0.00015683,2]